{"text_format":"1","workbook":"xlsx","n_sheets":5,"sheets":["FORMATOPEDIDO2.0","Resumen","ALUMNO2","ALUMNO3","menu"],"not_rendered":{"charts":0,"images":29,"macros":1,"external_links":0,"defined_names":5,"comments":1,"pivot_tables":0},"unopened":[],"bounds":{"document_bytes":16777216,"sheet_cells":100000,"rows_first":2000,"rows_last":500,"rows_between":2000,"halvings":0,"cell_chars":16384,"cell_head_chars":4096},"cells_cut":0,"cells_raw":0,"read":"whole","date_system":"1900"}

{"sheet":"FORMATOPEDIDO2.0","index":0,"n_rows":68,"n_cols":10,"rows_kept":68,"cut":false,"hidden":false,"merged":[[57,1,57,2],[57,3,57,4],[57,5,57,6],[57,7,57,8],[57,9,57,10],[37,9,37,10],[47,1,47,2],[47,3,47,4],[47,5,47,6],[47,7,47,8],[47,9,47,10],[17,1,17,2],[17,3,17,4],[17,5,17,6],[17,7,17,8],[17,9,17,10],[22,8,23,8],[22,10,23,10],[42,6,43,6],[66,1,66,3],[67,1,67,3],[22,4,23,4],[22,6,23,6],[27,1,27,2],[27,3,27,4],[27,5,27,6],[27,7,27,8],[27,9,27,10],[37,1,37,2],[37,3,37,4],[37,5,37,6],[37,7,37,8],[0,3,0,7],[2,0,2,10],[1,3,1,7],[52,2,53,2],[52,4,53,4],[52,6,53,6],[52,8,53,8],[52,10,53,10],[32,2,33,2],[32,4,33,4],[32,6,33,6],[32,8,33,8],[32,10,33,10],[42,2,43,2],[42,4,43,4],[3,0,3,10],[5,1,5,2],[6,1,6,2],[6,3,6,4],[4,0,4,2],[5,3,5,8],[6,6,6,8],[7,0,7,2],[8,0,8,2],[9,1,9,2],[8,3,8,6],[9,3,9,6],[69,0,69,1],[70,0,73,9],[101,0,101,10],[8,8,8,9],[9,8,9,9],[11,0,11,10],[97,0,97,10],[98,0,98,10],[62,2,63,2],[62,4,63,4],[62,6,63,6],[62,8,63,8],[62,10,63,10],[42,8,43,8],[42,10,43,10],[22,2,23,2]]}
[null,null,null,"HAPPY LUNCHES SERVICE"]
[null,null,null,"SANTA MARIA PRIMARIA\n (5to Y 6to GRADO)"]
["BCP Cuenta Corriente Soles:  194-1894682000                                                                  Cód. Cta. Interbancario BCP:  002 194 001894682000 90  "]
["FAVOR ENVIAR VOUCHER O TRANSFERENCIA ELECTRÓNICA A NUESTRO E-MAIL UNA VEZ REALIZADO EL ABONO EN NUESTRA CUENTA. GRACIAS POR SU COLABORACIÓN."]
[" DATOS DEL PADRE O APODERADO :"]
[null,"NOMBRES Y APELLIDOS:"]
[null,"TELÉFONO:","TELEFONO:",null,null,"CORREO ELECTRÓNICO:"]
["DATOS DEL ALUMNO                           :"]
["NOMBRES :",null,null,null,null,null,null,"GRADO Y SECCIÓN :"]
[null,"APELLIDOS :",null,null,null,null,null,"ALERGIAS :"]
[]
["IMPORTANTE: ES NECESARIO QUE LOS DATOS SOLICITADOS SEAN LLENADOS DE FORMA CORRECTA TANTO DEL TUTOR COMO DEL ALUMNO(A) . ELEGIR UNICAMENTE  LA OPCIÓN  EN LA FECHA  QUE DESEA EL SERVICIO,DE NO NECESITAR EL SERVICIO UN DÍA NO SELECCIONAR NINGUNA OPCIÓN ESE DÍA . YA QUE EL PROGRAMA CALCULARÁ LA CANTIDAD DE ALMUERZOS ELEGIDOS POR ALUMNO ASÍ COMO EL TOTAL A DEPOSITAR.PARA  REALIZAR  EL PEDIDO PARA UN ALUMNO MÁS DIRIGIRSE A LA SIGUIENTE HOJA ELECTRÓNICA.\nEN CADA HOJA ELECTRÓNICA DEBE DE HABER SOLO UN ALUMNO.\nNO RE-ENVIAR SIN HABER GUARDADO EL DOCUMENTO DESPUÉS DE HECHA LA SELECCIÓN"]
[]
[]
["Opción","Lunes",null,"Martes",null,"Miércoles",null,"Jueves",null,"Viernes"]
[null,{"$f":"menu!A3","v":0},null,{"$f":"menu!A10","v":"1 de Septiembre"},null,{"$f":"menu!A17","v":"2 de Septiembre"},null,{"$f":"menu!A24","v":"3 de Septiembre"},null,{"$f":"menu!A31","v":"4 de Septiembre"}]
[null,null,null,null,null," "]
["Entrada",{"$f":"menu!C3","v":0},null,{"$f":"menu!C10","v":"Huevito a la Rusa"},null,{"$f":"menu!C17","v":"Papita a la Huancaina"},null,{"$f":"menu!C24","v":"Wantan con Tamarindo"},null,{"$f":"menu!C31","v":"Ensalada de Espinaca"}]
["A",{"$f":"menu!C4","v":0},null,{"$f":"menu!C11","v":"Ají de Gallina"},null,{"$f":"menu!C18","v":"Arroz con Pollo"},null,{"$f":"menu!C25","v":"Arroz Chaufa fusión de Carne"},null,{"$f":"menu!C32","v":"Carapulcra guisada con Cerdo y arroz"}]
["Z",{"$f":"menu!C5","v":0},null,{"$f":"menu!C12","v":"Pollito al Sillao con arroz Primavera"},null,{"$f":"menu!C19","v":"Garbanzos guisados con res y arroz primavera"},null,{"$f":"menu!C26","v":"Albondigas al tuco con arroz a la Jarinera"},null,{"$f":"menu!C33","v":"Pollo a la reina con arroz primavera"}]
["D",{"$f":"menu!C6","v":0},null,{"$f":"menu!C13","v":"Ensalada César  Happy lunches con pollito al grill y crouttones"},null,{"$f":"menu!C20","v":"Ensalada Rusa con pavito al grill"},null,{"$f":"menu!C27","v":"Ensalada Parrillera con pollito al grill"},null,{"$f":"menu!C34","v":"Ensalada Cheff con pollito al grill"}]
["E",{"$f":"menu!C7","v":0},null,{"$f":"menu!C14","v":"Pizzadillas de Jamón y queso con Huevito a la Rusa"},null,{"$f":"menu!C21","v":"Macarrones con Queso y jamón"},null,{"$f":"menu!C28","v":"Pollito al horno con puré de papita amarilla"},null,{"$f":"menu!C35","v":"Nuggets de Pollo al horno con tequeños con guacamole"}]
["Postre",{"$f":"menu!C8","v":0},null,{"$f":"menu!C15","v":"Fruta de Estación"},null,{"$f":"menu!C22","v":"Gelatina con Fruta"},null,{"$f":"menu!C29","v":"Mini Brownie"},null,{"$f":"menu!C36","v":"Galletas Naturales de Ajonjolí con miel"}]
["Refresco",{"$f":"menu!C9","v":0},null,{"$f":"menu!C16","v":"Chicha Morada"},null,{"$f":"menu!C23","v":"Maracuyá "},null,{"$f":"menu!C30","v":"Naranjada"},null,{"$f":"menu!C37","v":"Limonada"}]
[]
["Opción",{"$f":"menu!A38","v":"7 de Septiembre"},null,{"$f":"menu!A45","v":"8 de Septiembre"},null,{"$f":"menu!A52","v":"9 de Septiembre"},null,{"$f":"menu!A59","v":"10 de Septiembre"},null,{"$f":"menu!A66","v":"11 de Septiembre"}]
[null," ",null," ",null," ",null," ",null," "]
["Entrada",{"$f":"menu!C38","v":"Pan al Ajo"},null,{"$f":"menu!C45","v":"Soufflé de Verduras"},null,{"$f":"menu!C52","v":"Ensalada de Pepino"},null,{"$f":"menu!C59","v":"Huevito a la Huancaina"},null,{"$f":"menu!C66","v":"Mini tortilla Española"}]
["A",{"$f":"menu!C39","v":"Pollito anticuchado con papitas y verduras"},null,{"$f":"menu!C46","v":"Pollito Saltado con arroz "},null,{"$f":"menu!C53","v":"Frijoles Canario con guisito de pollo"},null,{"$f":"menu!C60","v":"Spaghetti a la Bolognesa "},null,{"$f":"menu!C67","v":"Paella con verduras y pollo"}]
["Z",{"$f":"menu!C40","v":"Spaghetti a lo alfredo con pollito en cubos"},null,{"$f":"menu!C47","v":"Pollo a la Carbonara con Arroz"},null,{"$f":"menu!C54","v":"Cordon Bleu de pollo con arroz primavera"},null,{"$f":"menu!C61","v":"Milanesa de pescado con arroz primavera"},null,{"$f":"menu!C68","v":"Papita rellena de pollo con arroz primavera"}]
["D",{"$f":"menu!C41","v":"Ensalada de Pollo mechado "},null,{"$f":"menu!C48","v":"Causa rellena de pollito "},null,{"$f":"menu!C55","v":"Ensalada de Pavo  Happy lunches"},null,{"$f":"menu!C62","v":"Taco Salad con pollito "},null,{"$f":"menu!C69","v":"Ensalada de Atún "}]
["E",{"$f":"menu!C42","v":"Deditos de pescado con yuquitas al horno"},null,{"$f":"menu!C49","v":"Bisteck con papitas y verduras"},null,{"$f":"menu!C56","v":"Huevitos en su nido con papitas"},null,{"$f":"menu!C63","v":"Lasagna de poro y champignones con pollito con pan al ajo"},null,{"$f":"menu!C70","v":"Nuggets de Pollo al horno con puré de papita amarilla"}]
["Postre",{"$f":"menu!C43","v":"Mini Pionono"},null,{"$f":"menu!C50","v":"Fruta de Estación"},null,{"$f":"menu!C57","v":"Gelatina con Fruta"},null,{"$f":"menu!C64","v":"Galletas Naturales con Kiwicha"},null,{"$f":"menu!C71","v":"Mini Trufas "}]
["Refresco",{"$f":"menu!C44","v":"Limonada"},null,{"$f":"menu!C51","v":"Chicha Morada"},null,{"$f":"menu!C58","v":"Naranjada"},null,{"$f":"menu!C65","v":"Maracuyá"},null,{"$f":"menu!C72","v":"Limonada"}]
[]
["Opción",{"$f":"menu!A73","v":"14 de Septiembre"},null,{"$f":"menu!A80","v":"15 de Septiembre"},null,{"$f":"menu!A87","v":"16 de Septiembre"},null,{"$f":"menu!A94","v":"17 de Septiembre"},null,{"$f":"menu!A101","v":"18 de Septiembre"}]
[null," ",null," ",null," ",null," ",null," "]
["Entrada",{"$f":"menu!C73","v":"Mini Ensalada César"},null,{"$f":"menu!C80","v":"Ensalada Fresca"},null,{"$f":"menu!C87","v":"Papitas emperejiladas"},null,{"$f":"menu!C94","v":"Huevito Relleno"},null,{"$f":"menu!C101","v":"Choclito a la Huancaina"}]
["A",{"$f":"menu!C74","v":"Vainitas Salteadas con carne/ arroz blanco"},null,{"$f":"menu!C81","v":"Pollito anticuchado con papitas y choclo"},null,{"$f":"menu!C88","v":"Milanesa de Pescado con arroz con verduras"},null,{"$f":"menu!C95","v":"Estofado de pollo con arroz blanco"},null,{"$f":"menu!C102","v":"Arroz con Pollo "}]
["Z",{"$f":"menu!C75","v":"Pepián de choclo guisado con cerdo/arroz"},null,{"$f":"menu!C82","v":"Spaghetti al pesto con guisito de carne"},null,{"$f":"menu!C89","v":"Seco de Res con arroz blanco"},null,{"$f":"menu!C96","v":"Arvejitas verdes con  guisito de pollo"},null,{"$f":"menu!C103","v":"Pollito al grill con arroz y brócoli"}]
["D",{"$f":"menu!C76","v":"Ensalada César Happy Lunches con pollito al grill"},null,{"$f":"menu!C83","v":"Ensalada Criolla con pollito al grill"},null,{"$f":"menu!C90","v":"Ensalada de Palta con pollito anticuchado"},null,{"$f":"menu!C97","v":"Ensalada de Quinua con pollo en dados"},null,{"$f":"menu!C104","v":"Ensalada de Garbanzos con atún"}]
["E",{"$f":"menu!C77","v":"Cheeseburguer con papitas "},null,{"$f":"menu!C84","v":"Chicken fingers con choclo con queso"},null,{"$f":"menu!C91","v":"Pizza de Jamón y queso / verduras"},null,{"$f":"menu!C98","v":"Pollo al sillao con arroz con verduras"},null,{"$f":"menu!C105","v":"Chicken fingers con papitas duquesas "}]
["Postre",{"$f":"menu!C78","v":"Mini blondie"},null,{"$f":"menu!C85","v":"Fruta de Estación"},null,{"$f":"menu!C92","v":"Bombitas Happy Lunches "},null,{"$f":"menu!C99","v":"Gelatina con Fruta"},null,{"$f":"menu!C106","v":"Galletas Naturales de Kiwicha"}]
["Refresco",{"$f":"menu!C79","v":"Naranjada"},null,{"$f":"menu!C86","v":"Chicha Morada"},null,{"$f":"menu!C93","v":"Limonada"},null,{"$f":"menu!C100","v":"Maracuyá "},null,{"$f":"menu!C107","v":"Limonada"}]
[]
["Opción",{"$f":"menu!A108","v":"21 de Septiembre"},null,{"$f":"menu!A115","v":"22 de Septiembre"},null,{"$f":"menu!A122","v":"23 de Septiembre"},null,{"$f":"menu!A129","v":"24 de Septiembre"},null,{"$f":"menu!A136","v":"25 de Septiembre"}]
[null," ",null," ",null," ",null," ",null," "]
["Entrada",{"$f":"menu!C108","v":"Ensalada fresca "},null,{"$f":"menu!C115","v":"Soufflé de verduras"},null,{"$f":"menu!C122","v":"Mini pizadillas"},null,{"$f":"menu!C129","v":"Pan al ajo"},null,{"$f":"menu!C136","v":"Ensalada de Espinaca"}]
["A",{"$f":"menu!C109","v":"Hamburguesa al plato con papitas"},null,{"$f":"menu!C116","v":"Cau-cau de pollo "},null,{"$f":"menu!C123","v":"Seco de res con arroz"},null,{"$f":"menu!C130","v":"Lasagna a la Bolognesa"},null,{"$f":"menu!C137","v":"Ají de Gallina con arroz"}]
["Z",{"$f":"menu!C110","v":"Spaghetti a la carbonara con pollito al grill"},null,{"$f":"menu!C117","v":"Arroz chaufa de pollo "},null,{"$f":"menu!C124","v":"Canutos capresse con pollito"},null,{"$f":"menu!C131","v":"Pollo a la Coca-Cola con arroz"},null,{"$f":"menu!C138","v":"Pallares guisados con pollito y arroz"}]
["D",{"$f":"menu!C111","v":"Ensalada Oriental con pollito al grill"},null,{"$f":"menu!C118","v":"Ensalada Rusa con Pavito al horno"},null,{"$f":"menu!C125","v":"Palta Rellena con atún"},null,{"$f":"menu!C132","v":"Ensalada Delicia con pollito al grill"},null,{"$f":"menu!C139","v":"Super Papa a la Huancaina con huevo duro"}]
["E",{"$f":"menu!C112","v":"Nuggets al horno con papitas"},null,{"$f":"menu!C119","v":"Tortillas de Coliflor con pollito y arroz blanco"},null,{"$f":"menu!C126","v":"Nuggets al horno con lentejas guisadas"},null,{"$f":"menu!C133","v":"Pollito anticuchado con arroz a la jardinera"},null,{"$f":"menu!C140","v":"Pollito BBQ con arroz y verduras"}]
["Postre",{"$f":"menu!C113","v":"Fruta de Estación"},null,{"$f":"menu!C120","v":"Mini Brownie"},null,{"$f":"menu!C127","v":"Bombitas Happy Lunches "},null,{"$f":"menu!C134","v":"Gelatina con Fruta"},null,{"$f":"menu!C141","v":"Mini Trufas"}]
["Refresco",{"$f":"menu!C114","v":"Limonada"},null,{"$f":"menu!C121","v":"Chicha Morada"},null,{"$f":"menu!C128","v":"Naranjada"},null,{"$f":"menu!C135","v":"Limonada"},null,{"$f":"menu!C142","v":"Maracuyá"}]
[]
["Opción",{"$f":"menu!A143","v":"28 de Septiembre"},null,{"$f":"menu!A150","v":"29 de Septiembre"},null,{"$f":"menu!A157","v":"30 de Septiembre"},null,{"$f":"menu!A164","v":0},null,{"$f":"menu!A171","v":0}]
[null," ",null," ",null," ",null," "]
["Entrada",{"$f":"menu!C143","v":"Crema de Zapallo "},null,{"$f":"menu!C150","v":"Ensalada de Palta"},null,{"$f":"menu!C157","v":"Mini Quesadilla"},null,{"$f":"menu!C164","v":0},null,{"$f":"menu!C171","v":0}]
["A",{"$f":"menu!C144","v":"Tortillas de Atún con arroz con verduras"},null,{"$f":"menu!C151","v":"Pollo al vino con arroz blanco"},null,{"$f":"menu!C158","v":"Arroz a la jardinera con guiso de carne"},null,{"$f":"menu!C165","v":0},null,{"$f":"menu!C172","v":0}]
["Z",{"$f":"menu!C145","v":"Pollo a la mostaza con arroz"},null,{"$f":"menu!C152","v":"Bisteck con huevito al grill y arroz"},null,{"$f":"menu!C159","v":"Pollo a la Olla con arroz"},null,{"$f":"menu!C166","v":0},null,{"$f":"menu!C173","v":0}]
["D",{"$f":"menu!C146","v":"Wrap de pollo y palta "},null,{"$f":"menu!C153","v":"Causa Limeña con pollito "},null,{"$f":"menu!C160","v":"Pan Ciabatta integral con asado"},null,{"$f":"menu!C167","v":0},null,{"$f":"menu!C174","v":0}]
["E",{"$f":"menu!C147","v":"Alitas al Horno con ensalada Rusa"},null,{"$f":"menu!C154","v":"Pechuguitas al horno con puré "},null,{"$f":"menu!C161","v":"Nuggets al horno con papitas"},null,{"$f":"menu!C168","v":0},null,{"$f":"menu!C175","v":0}]
["Postre",{"$f":"menu!C148","v":"Alfajor"},null,{"$f":"menu!C155","v":"Galletas Naturales "},null,{"$f":"menu!C162","v":"Mini Piononito"},null,{"$f":"menu!C169","v":0},null,{"$f":"menu!C176","v":0}]
["Refresco",{"$f":"menu!C149","v":"Limonada"},null,{"$f":"menu!C156","v":"Chicha Morada"},null,{"$f":"menu!C163","v":"Maracuyá"},null,{"$f":"menu!C170","v":0},null,{"$f":"menu!C177","v":0}]
[]
[null,null,null,null,null,null,null,"Limpiar  Pedidos"]
[null,"SI DESEA  EDITAR O REALIZAR UN PEDIDO MÁS HACER CLICK EN ALUMNO 2"]
[null,"SI DESEA  EDITAR O REALIZAR UN PEDIDO MÁS HACER CLICK EN ALUMNO 3"]

{"sheet":"Resumen","index":1,"n_rows":30,"n_cols":36,"rows_kept":30,"cut":false,"hidden":false,"merged":[[30,11,31,29],[25,0,25,29],[26,0,26,29],[29,0,29,29],[27,11,28,29],[18,1,18,29],[19,1,19,29],[0,0,1,0],[0,1,1,29],[9,0,11,27],[14,0,17,29],[13,0,13,29]]}
[null,"No se aceptarán nuevos pedidos ni cambios de opción con menos de 03 días (72 horas) de anticipación, excepto dietas por enfermedad"]
[]
["NOMBRES Y APELLIDOS","SECCION Y GRADO",{"$f":"menu!$A3","v":0},{"$f":"menu!A10","v":"1 de Septiembre"},{"$f":"menu!$A17","v":"2 de Septiembre"},{"$f":"menu!A24","v":"3 de Septiembre"},{"$f":"menu!A31","v":"4 de Septiembre"},{"$f":"menu!A38","v":"7 de Septiembre"},{"$f":"menu!A45","v":"8 de Septiembre"},{"$f":"menu!A52","v":"9 de Septiembre"},{"$f":"menu!A59","v":"10 de Septiembre"},{"$f":"menu!A66","v":"11 de Septiembre"},{"$f":"menu!A73","v":"14 de Septiembre"},{"$f":"menu!A80","v":"15 de Septiembre"},{"$f":"menu!A87","v":"16 de Septiembre"},{"$f":"menu!A94","v":"17 de Septiembre"},{"$f":"menu!A101","v":"18 de Septiembre"},{"$f":"menu!A108","v":"21 de Septiembre"},{"$f":"menu!A115","v":"22 de Septiembre"},{"$f":"menu!A122","v":"23 de Septiembre"},{"$f":"menu!A129","v":"24 de Septiembre"},{"$f":"menu!A136","v":"25 de Septiembre"},{"$f":"menu!A143","v":"28 de Septiembre"},{"$f":"menu!A150","v":"29 de Septiembre"},{"$f":"menu!A157","v":"30 de Septiembre"},{"$f":"menu!A164","v":0},{"$f":"menu!A171","v":0},"Número de Almuerzos","COSTO DIARIO ","Total Soles"]
["PEDIDO ALU3"]
["PEDIDO ALU2"]
["PEDIDO ALU1"]
[{"$f":"CONCATENATE(FORMATOPEDIDO2.0!D9,\"  \",FORMATOPEDIDO2.0!D10)","v":"  "},{"$f":"FORMATOPEDIDO2.0!I9","v":0},{"$f":"IF(C6=1,\"A\",IF(C6=2,\"Z\",IF(C6=3,\"D\",IF(C6=4,\"E\",\"\"))))","v":""},{"$f":"IF(D6=1,\"A\",IF(D6=2,\"Z\",IF(D6=3,\"D\",IF(D6=4,\"E\",\"\"))))","v":""},"","","","","","","","","","","","","","","","","","","","","","","",{"$f":"COUNTA(C6:AA6)","v":0},11,{"$f":"AB7*AC7","v":0},{"$f":"COUNTIF(C7:Z7,\"a\")","v":0},{"$f":"COUNTIF(C7:Z7,\"z\")","v":0},{"$f":"COUNTIF(C7:Z7,\"b\")","v":0},{"$f":"COUNTIF(C7:Z7,\"c\")","v":0},{"$f":"COUNTIF(C7:Z7,\"d\")","v":0},{"$f":"COUNTIF(C7:Z7,\"e\")","v":0}]
[{"$f":"CONCATENATE(ALUMNO2!D9,\"  \",ALUMNO2!D10)","v":"  "},{"$f":"ALUMNO2!I9","v":0},{"$f":"IF(C5=1,\"A\",IF(C5=2,\"Z\",IF(C5=3,\"D\",IF(C5=4,\"E\",\"\"))))","v":""},{"$f":"IF(D5=1,\"A\",IF(D5=2,\"Z\",IF(D5=3,\"D\",IF(D5=4,\"E\",\"\"))))","v":""},"","","","","","","","","","","","","","","","","","","","","","","",{"$f":"COUNTA(C5:AA5)","v":0},11,{"$f":"AB8*AC8","v":0}]
[{"$f":"CONCATENATE(ALUMNO3!D9,\"  \",ALUMNO3!D10)","v":"  "},{"$f":"ALUMNO3!I9","v":0},{"$f":"IF(C4=1,\"A\",IF(C4=2,\"Z\",IF(C4=3,\"D\",IF(C4=4,\"E\",\"\"))))","v":""},{"$f":"IF(D4=1,\"A\",IF(D4=2,\"Z\",IF(D4=3,\"D\",IF(D4=4,\"E\",\"\"))))","v":""},"","","","","","","","","","","","","","","","","","","","","","","",{"$f":"COUNTA(C4:AA4)","v":0},11,{"$f":"AB9*AC9","v":0},{"$f":"COUNTIF(C9:Z9,\"a\")","v":0},{"$f":"COUNTIF(C9:Z9,\"z\")","v":0},{"$f":"COUNTIF(C9:Z9,\"b\")","v":0},{"$f":"COUNTIF(C9:Z9,\"c\")","v":0},{"$f":"COUNTIF(C9:Z9,\"d\")","v":0},{"$f":"COUNTIF(C9:Z9,\"e\")","v":0}]
["AGRADECEREMOS REALIZAR SUS DEPÓSITOS CON UN MAXIMO DE 05 DÍAS UTILES DESPUES DE INICIADO EL SERVICIO SOLICITADO PARA EVITAR EL RECARGO DE S/.12.00 POR RETRASO EN EL PAGO.\nA PARTIR DEL 6TO  DIA DE REALIZAR EL PEDIDO Y NO HABER REALIZADO LA CANCELACIÓN SE DEBE DE SUMAR UN RECARGO FIJO DE S/.12.00 AL IMPORTE TOTAL.",null,null,null,null,null,null,null,null,null,null,null,null,null,null,null,null,null,null,null,null,null,null,null,null,null,null,null,"TOTAL ",{"$f":"SUM(AD7:AD9)","v":0}]
[null,null,null,null,null,null,null,null,null,null,null,null,null,null,null,null,null,null,null,null,null,null,null,null,null,null,null,null,null,{"$f":"12","v":12}]
[null,null,null,null,null,null,null,null,null,null,null,null,null,null,null,null,null,null,null,null,null,null,null,null,null,null,null,null,"PAGO CON MORA ",{"$f":"AD10+12","v":12}]
[]
["RESUMEN DE PEDIDO TOTAL:"]
["          CORREO ELECTRÓNICO:\n lunch-sm@happylunchesservice.com"]
[]
[]
[]
[]
[]
[]
[]
[]
[]
[]
["HORARIO DE ATENCIÓN AL CLIENTE: TELÉFONOS FIJOS - LUNES A VIERNES DE 7AM - 4PM    CELULARES: 7AM - 4PM"]
["Teléfonos:  445-8009  ó  250-8990         Maite Valdivia: 967759206"]
[]
[]
["Encuentre el menú en :    www.happylunchesservice.com"]

{"sheet":"ALUMNO2","index":2,"n_rows":68,"n_cols":10,"rows_kept":68,"cut":false,"hidden":false,"merged":[[101,0,101,10],[62,2,63,2],[62,4,63,4],[62,6,63,6],[62,8,63,8],[62,10,63,10],[66,1,66,3],[67,1,67,3],[69,0,69,1],[70,0,73,9],[97,0,97,10],[98,0,98,10],[52,2,53,2],[52,4,53,4],[52,6,53,6],[52,8,53,8],[52,10,53,10],[57,1,57,2],[57,3,57,4],[57,5,57,6],[57,7,57,8],[57,9,57,10],[42,2,43,2],[42,4,43,4],[42,6,43,6],[42,8,43,8],[42,10,43,10],[47,1,47,2],[47,3,47,4],[47,5,47,6],[47,7,47,8],[47,9,47,10],[32,2,33,2],[32,4,33,4],[32,6,33,6],[32,8,33,8],[32,10,33,10],[37,1,37,2],[37,3,37,4],[37,5,37,6],[37,7,37,8],[37,9,37,10],[22,2,23,2],[22,4,23,4],[22,6,23,6],[22,8,23,8],[22,10,23,10],[27,1,27,2],[27,3,27,4],[27,5,27,6],[27,7,27,8],[27,9,27,10],[9,1,9,2],[9,3,9,6],[9,8,9,9],[11,0,11,10],[17,1,17,2],[17,3,17,4],[17,5,17,6],[17,7,17,8],[17,9,17,10],[6,1,6,2],[6,3,6,4],[6,6,6,8],[7,0,7,2],[8,0,8,2],[8,3,8,6],[8,8,8,9],[5,1,5,2],[5,3,5,8],[0,3,0,7],[1,3,1,7],[2,0,2,10],[3,0,3,10],[4,0,4,2]]}
[]
[]
[]
[]
[" DATOS DEL PADRE O APODERADO :"]
[null,"NOMBRES Y APELLIDOS:"]
[null,"TELÉFONO:","TELEFONO:",null,null,"CORREO ELECTRÓNICO:"]
["DATOS DEL ALUMNO     N°2                   :"]
["NOMBRES :",null,null,null,null,null,null,"GRADO Y SECCIÓN :"]
[null,"APELLIDOS :",null,null,null,null,null,"ALERGIAS :"]
[]
[]
[]
[]
["Opción","Lunes",null,"Martes",null,"Miércoles",null,"Jueves",null,"Viernes"]
[null,{"$f":"menu!A3","v":0},null,{"$f":"menu!A10","v":"1 de Septiembre"},null,{"$f":"menu!A17","v":"2 de Septiembre"},null,{"$f":"menu!A24","v":"3 de Septiembre"},null,{"$f":"menu!A31","v":"4 de Septiembre"}]
[null,null,null,null,null," "]
["Entrada",{"$f":"menu!C3","v":0},null,{"$f":"menu!C10","v":"Huevito a la Rusa"},null,{"$f":"menu!C17","v":"Papita a la Huancaina"},null,{"$f":"menu!C24","v":"Wantan con Tamarindo"},null,{"$f":"menu!C31","v":"Ensalada de Espinaca"}]
["A",{"$f":"menu!C4","v":0},null,{"$f":"menu!C11","v":"Ají de Gallina"},null,{"$f":"menu!C18","v":"Arroz con Pollo"},null,{"$f":"menu!C25","v":"Arroz Chaufa fusión de Carne"},null,{"$f":"menu!C32","v":"Carapulcra guisada con Cerdo y arroz"}]
["Z",{"$f":"menu!C5","v":0},null,{"$f":"menu!C12","v":"Pollito al Sillao con arroz Primavera"},null,{"$f":"menu!C19","v":"Garbanzos guisados con res y arroz primavera"},null,{"$f":"menu!C26","v":"Albondigas al tuco con arroz a la Jarinera"},null,{"$f":"menu!C33","v":"Pollo a la reina con arroz primavera"}]
["D",{"$f":"menu!C6","v":0},null,{"$f":"menu!C13","v":"Ensalada César  Happy lunches con pollito al grill y crouttones"},null,{"$f":"menu!C20","v":"Ensalada Rusa con pavito al grill"},null,{"$f":"menu!C27","v":"Ensalada Parrillera con pollito al grill"},null,{"$f":"menu!C34","v":"Ensalada Cheff con pollito al grill"}]
["E",{"$f":"menu!C7","v":0},null,{"$f":"menu!C14","v":"Pizzadillas de Jamón y queso con Huevito a la Rusa"},null,{"$f":"menu!C21","v":"Macarrones con Queso y jamón"},null,{"$f":"menu!C28","v":"Pollito al horno con puré de papita amarilla"},null,{"$f":"menu!C35","v":"Nuggets de Pollo al horno con tequeños con guacamole"}]
["Postre",{"$f":"menu!C8","v":0},null,{"$f":"menu!C15","v":"Fruta de Estación"},null,{"$f":"menu!C22","v":"Gelatina con Fruta"},null,{"$f":"menu!C29","v":"Mini Brownie"},null,{"$f":"menu!C36","v":"Galletas Naturales de Ajonjolí con miel"}]
["Refresco",{"$f":"menu!C9","v":0},null,{"$f":"menu!C16","v":"Chicha Morada"},null,{"$f":"menu!C23","v":"Maracuyá "},null,{"$f":"menu!C30","v":"Naranjada"},null,{"$f":"menu!C37","v":"Limonada"}]
[]
["Opción",{"$f":"menu!A38","v":"7 de Septiembre"},null,{"$f":"menu!A45","v":"8 de Septiembre"},null,{"$f":"menu!A52","v":"9 de Septiembre"},null,{"$f":"menu!A59","v":"10 de Septiembre"},null,{"$f":"menu!A66","v":"11 de Septiembre"}]
[null," ",null," ",null," ",null," ",null," "]
["Entrada",{"$f":"menu!C38","v":"Pan al Ajo"},null,{"$f":"menu!C45","v":"Soufflé de Verduras"},null,{"$f":"menu!C52","v":"Ensalada de Pepino"},null,{"$f":"menu!C59","v":"Huevito a la Huancaina"},null,{"$f":"menu!C66","v":"Mini tortilla Española"}]
["A",{"$f":"menu!C39","v":"Pollito anticuchado con papitas y verduras"},null,{"$f":"menu!C46","v":"Pollito Saltado con arroz "},null,{"$f":"menu!C53","v":"Frijoles Canario con guisito de pollo"},null,{"$f":"menu!C60","v":"Spaghetti a la Bolognesa "},null,{"$f":"menu!C67","v":"Paella con verduras y pollo"}]
["Z",{"$f":"menu!C40","v":"Spaghetti a lo alfredo con pollito en cubos"},null,{"$f":"menu!C47","v":"Pollo a la Carbonara con Arroz"},null,{"$f":"menu!C54","v":"Cordon Bleu de pollo con arroz primavera"},null,{"$f":"menu!C61","v":"Milanesa de pescado con arroz primavera"},null,{"$f":"menu!C68","v":"Papita rellena de pollo con arroz primavera"}]
["D",{"$f":"menu!C41","v":"Ensalada de Pollo mechado "},null,{"$f":"menu!C48","v":"Causa rellena de pollito "},null,{"$f":"menu!C55","v":"Ensalada de Pavo  Happy lunches"},null,{"$f":"menu!C62","v":"Taco Salad con pollito "},null,{"$f":"menu!C69","v":"Ensalada de Atún "}]
["E",{"$f":"menu!C42","v":"Deditos de pescado con yuquitas al horno"},null,{"$f":"menu!C49","v":"Bisteck con papitas y verduras"},null,{"$f":"menu!C56","v":"Huevitos en su nido con papitas"},null,{"$f":"menu!C63","v":"Lasagna de poro y champignones con pollito con pan al ajo"},null,{"$f":"menu!C70","v":"Nuggets de Pollo al horno con puré de papita amarilla"}]
["Postre",{"$f":"menu!C43","v":"Mini Pionono"},null,{"$f":"menu!C50","v":"Fruta de Estación"},null,{"$f":"menu!C57","v":"Gelatina con Fruta"},null,{"$f":"menu!C64","v":"Galletas Naturales con Kiwicha"},null,{"$f":"menu!C71","v":"Mini Trufas "}]
["Refresco",{"$f":"menu!C44","v":"Limonada"},null,{"$f":"menu!C51","v":"Chicha Morada"},null,{"$f":"menu!C58","v":"Naranjada"},null,{"$f":"menu!C65","v":"Maracuyá"},null,{"$f":"menu!C72","v":"Limonada"}]
[]
["Opción",{"$f":"menu!A73","v":"14 de Septiembre"},null,{"$f":"menu!A80","v":"15 de Septiembre"},null,{"$f":"menu!A87","v":"16 de Septiembre"},null,{"$f":"menu!A94","v":"17 de Septiembre"},null,{"$f":"menu!A101","v":"18 de Septiembre"}]
[null," ",null," ",null," ",null," ",null," "]
["Entrada",{"$f":"menu!C73","v":"Mini Ensalada César"},null,{"$f":"menu!C80","v":"Ensalada Fresca"},null,{"$f":"menu!C87","v":"Papitas emperejiladas"},null,{"$f":"menu!C94","v":"Huevito Relleno"},null,{"$f":"menu!C101","v":"Choclito a la Huancaina"}]
["A",{"$f":"menu!C74","v":"Vainitas Salteadas con carne/ arroz blanco"},null,{"$f":"menu!C81","v":"Pollito anticuchado con papitas y choclo"},null,{"$f":"menu!C88","v":"Milanesa de Pescado con arroz con verduras"},null,{"$f":"menu!C95","v":"Estofado de pollo con arroz blanco"},null,{"$f":"menu!C102","v":"Arroz con Pollo "}]
["Z",{"$f":"menu!C75","v":"Pepián de choclo guisado con cerdo/arroz"},null,{"$f":"menu!C82","v":"Spaghetti al pesto con guisito de carne"},null,{"$f":"menu!C89","v":"Seco de Res con arroz blanco"},null,{"$f":"menu!C96","v":"Arvejitas verdes con  guisito de pollo"},null,{"$f":"menu!C103","v":"Pollito al grill con arroz y brócoli"}]
["D",{"$f":"menu!C76","v":"Ensalada César Happy Lunches con pollito al grill"},null,{"$f":"menu!C83","v":"Ensalada Criolla con pollito al grill"},null,{"$f":"menu!C90","v":"Ensalada de Palta con pollito anticuchado"},null,{"$f":"menu!C97","v":"Ensalada de Quinua con pollo en dados"},null,{"$f":"menu!C104","v":"Ensalada de Garbanzos con atún"}]
["E",{"$f":"menu!C77","v":"Cheeseburguer con papitas "},null,{"$f":"menu!C84","v":"Chicken fingers con choclo con queso"},null,{"$f":"menu!C91","v":"Pizza de Jamón y queso / verduras"},null,{"$f":"menu!C98","v":"Pollo al sillao con arroz con verduras"},null,{"$f":"menu!C105","v":"Chicken fingers con papitas duquesas "}]
["Postre",{"$f":"menu!C78","v":"Mini blondie"},null,{"$f":"menu!C85","v":"Fruta de Estación"},null,{"$f":"menu!C92","v":"Bombitas Happy Lunches "},null,{"$f":"menu!C99","v":"Gelatina con Fruta"},null,{"$f":"menu!C106","v":"Galletas Naturales de Kiwicha"}]
["Refresco",{"$f":"menu!C79","v":"Naranjada"},null,{"$f":"menu!C86","v":"Chicha Morada"},null,{"$f":"menu!C93","v":"Limonada"},null,{"$f":"menu!C100","v":"Maracuyá "},null,{"$f":"menu!C107","v":"Limonada"}]
[]
["Opción",{"$f":"menu!A108","v":"21 de Septiembre"},null,{"$f":"menu!A115","v":"22 de Septiembre"},null,{"$f":"menu!A122","v":"23 de Septiembre"},null,{"$f":"menu!A129","v":"24 de Septiembre"},null,{"$f":"menu!A136","v":"25 de Septiembre"}]
[null," ",null," ",null," ",null," ",null," "]
["Entrada",{"$f":"menu!C108","v":"Ensalada fresca "},null,{"$f":"menu!C115","v":"Soufflé de verduras"},null,{"$f":"menu!C122","v":"Mini pizadillas"},null,{"$f":"menu!C129","v":"Pan al ajo"},null,{"$f":"menu!C136","v":"Ensalada de Espinaca"}]
["A",{"$f":"menu!C109","v":"Hamburguesa al plato con papitas"},null,{"$f":"menu!C116","v":"Cau-cau de pollo "},null,{"$f":"menu!C123","v":"Seco de res con arroz"},null,{"$f":"menu!C130","v":"Lasagna a la Bolognesa"},null,{"$f":"menu!C137","v":"Ají de Gallina con arroz"}]
["Z",{"$f":"menu!C110","v":"Spaghetti a la carbonara con pollito al grill"},null,{"$f":"menu!C117","v":"Arroz chaufa de pollo "},null,{"$f":"menu!C124","v":"Canutos capresse con pollito"},null,{"$f":"menu!C131","v":"Pollo a la Coca-Cola con arroz"},null,{"$f":"menu!C138","v":"Pallares guisados con pollito y arroz"}]
["D",{"$f":"menu!C111","v":"Ensalada Oriental con pollito al grill"},null,{"$f":"menu!C118","v":"Ensalada Rusa con Pavito al horno"},null,{"$f":"menu!C125","v":"Palta Rellena con atún"},null,{"$f":"menu!C132","v":"Ensalada Delicia con pollito al grill"},null,{"$f":"menu!C139","v":"Super Papa a la Huancaina con huevo duro"}]
["E",{"$f":"menu!C112","v":"Nuggets al horno con papitas"},null,{"$f":"menu!C119","v":"Tortillas de Coliflor con pollito y arroz blanco"},null,{"$f":"menu!C126","v":"Nuggets al horno con lentejas guisadas"},null,{"$f":"menu!C133","v":"Pollito anticuchado con arroz a la jardinera"},null,{"$f":"menu!C140","v":"Pollito BBQ con arroz y verduras"}]
["Postre",{"$f":"menu!C113","v":"Fruta de Estación"},null,{"$f":"menu!C120","v":"Mini Brownie"},null,{"$f":"menu!C127","v":"Bombitas Happy Lunches "},null,{"$f":"menu!C134","v":"Gelatina con Fruta"},null,{"$f":"menu!C141","v":"Mini Trufas"}]
["Refresco",{"$f":"menu!C114","v":"Limonada"},null,{"$f":"menu!C121","v":"Chicha Morada"},null,{"$f":"menu!C128","v":"Naranjada"},null,{"$f":"menu!C135","v":"Limonada"},null,{"$f":"menu!C142","v":"Maracuyá"}]
[]
["Opción",{"$f":"menu!A143","v":"28 de Septiembre"},null,{"$f":"menu!A150","v":"29 de Septiembre"},null,{"$f":"menu!A157","v":"30 de Septiembre"},null,{"$f":"menu!A164","v":0},null,{"$f":"menu!A171","v":0}]
[null," ",null," ",null," ",null," "]
["Entrada",{"$f":"menu!C143","v":"Crema de Zapallo "},null,{"$f":"menu!C150","v":"Ensalada de Palta"},null,{"$f":"menu!C157","v":"Mini Quesadilla"},null,{"$f":"menu!C164","v":0},null,{"$f":"menu!C171","v":0}]
["A",{"$f":"menu!C144","v":"Tortillas de Atún con arroz con verduras"},null,{"$f":"menu!C151","v":"Pollo al vino con arroz blanco"},null,{"$f":"menu!C158","v":"Arroz a la jardinera con guiso de carne"},null,{"$f":"menu!C165","v":0},null,{"$f":"menu!C172","v":0}]
["Z",{"$f":"menu!C145","v":"Pollo a la mostaza con arroz"},null,{"$f":"menu!C152","v":"Bisteck con huevito al grill y arroz"},null,{"$f":"menu!C159","v":"Pollo a la Olla con arroz"},null,{"$f":"menu!C166","v":0},null,{"$f":"menu!C173","v":0}]
["D",{"$f":"menu!C146","v":"Wrap de pollo y palta "},null,{"$f":"menu!C153","v":"Causa Limeña con pollito "},null,{"$f":"menu!C160","v":"Pan Ciabatta integral con asado"},null,{"$f":"menu!C167","v":0},null,{"$f":"menu!C174","v":0}]
["E",{"$f":"menu!C147","v":"Alitas al Horno con ensalada Rusa"},null,{"$f":"menu!C154","v":"Pechuguitas al horno con puré "},null,{"$f":"menu!C161","v":"Nuggets al horno con papitas"},null,{"$f":"menu!C168","v":0},null,{"$f":"menu!C175","v":0}]
["Postre",{"$f":"menu!C148","v":"Alfajor"},null,{"$f":"menu!C155","v":"Galletas Naturales "},null,{"$f":"menu!C162","v":"Mini Piononito"},null,{"$f":"menu!C169","v":0},null,{"$f":"menu!C176","v":0}]
["Refresco",{"$f":"menu!C149","v":"Limonada"},null,{"$f":"menu!C156","v":"Chicha Morada"},null,{"$f":"menu!C163","v":"Maracuyá"},null,{"$f":"menu!C170","v":0},null,{"$f":"menu!C177","v":0}]
[]
[null,null,null,null,null,null,null,"Limpiar  Pedidos"]
[null,"SI DESEA  EDITAR O REALIZAR UN PEDIDO MÁS HACER CLICK EN ALUMNO 3"]
[null,"SI FINALIZO SU PEDIDO DAR CLICK INICIO"]

{"sheet":"ALUMNO3","index":3,"n_rows":68,"n_cols":10,"rows_kept":68,"cut":false,"hidden":false,"merged":[[101,0,101,10],[62,2,63,2],[62,4,63,4],[62,6,63,6],[62,8,63,8],[62,10,63,10],[66,1,66,3],[67,1,67,3],[69,0,69,1],[70,0,73,9],[97,0,97,10],[98,0,98,10],[52,2,53,2],[52,4,53,4],[52,6,53,6],[52,8,53,8],[52,10,53,10],[57,1,57,2],[57,3,57,4],[57,5,57,6],[57,7,57,8],[57,9,57,10],[42,2,43,2],[42,4,43,4],[42,6,43,6],[42,8,43,8],[42,10,43,10],[47,1,47,2],[47,3,47,4],[47,5,47,6],[47,7,47,8],[47,9,47,10],[32,2,33,2],[32,4,33,4],[32,6,33,6],[32,8,33,8],[32,10,33,10],[37,1,37,2],[37,3,37,4],[37,5,37,6],[37,7,37,8],[37,9,37,10],[22,2,23,2],[22,4,23,4],[22,6,23,6],[22,8,23,8],[22,10,23,10],[27,1,27,2],[27,3,27,4],[27,5,27,6],[27,7,27,8],[27,9,27,10],[9,1,9,2],[9,3,9,6],[9,8,9,9],[11,0,11,10],[17,1,17,2],[17,3,17,4],[17,5,17,6],[17,7,17,8],[17,9,17,10],[6,1,6,2],[6,3,6,4],[6,6,6,8],[7,0,7,2],[8,0,8,2],[8,3,8,6],[8,8,8,9],[5,1,5,2],[5,3,5,8],[0,3,0,7],[1,3,1,7],[2,0,2,10],[3,0,3,10],[4,0,4,2]]}
[]
[]
[]
[]
[" DATOS DEL PADRE O APODERADO :"]
[null,"NOMBRES Y APELLIDOS:"]
[null,"TELÉFONO:","TELEFONO:",null,null,"CORREO ELECTRÓNICO:"]
["DATOS DEL ALUMNO     N°2                   :"]
["NOMBRES :",null,null,null,null,null,null,"GRADO Y SECCIÓN :"]
[null,"APELLIDOS :",null,null,null,null,null,"ALERGIAS :"]
[]
["IMPORTANTE: ES NECESARIO QUE LOS DATOS SOLICITADOS SEAN LLENADOS DE FORMA CORRECTA TANTO DEL TUTOR COMO DEL ALUMNO(A) . ELEGIR UNICAMENTE  LA OPCIÓN  EN LA FECHA  QUE DESEA EL SERVICIO,DE NO NECESITAR EL SERVICIO UN DÍA NO SELECCIONAR NINGUNA OPCIÓN ESE DÍA . YA QUE EL PROGRAMA CALCULARÁ LA CANTIDAD DE ALMUERZOS ELEGIDOS POR ALUMNO ASÍ COMO EL TOTAL A DEPOSITAR.PARA  REALIZAR  EL PEDIDO PARA UN ALUMNO MÁS DIRIGIRSE A LA SIGUIENTE HOJA ELECTRÓNICA.\nEN CADA HOJA ELECTRÓNICA DEBE DE HABER SOLO UN ALUMNO.\nNO RE-ENVIAR SIN HABER GUARDADO EL DOCUMENTO DESPUÉS DE HECHA LA SELECCIÓN"]
[]
[]
["Opción","Lunes",null,"Martes",null,"Miércoles",null,"Jueves",null,"Viernes"]
[null,{"$f":"menu!A3","v":0},null,{"$f":"menu!A10","v":"1 de Septiembre"},null,{"$f":"menu!A17","v":"2 de Septiembre"},null,{"$f":"menu!A24","v":"3 de Septiembre"},null,{"$f":"menu!A31","v":"4 de Septiembre"}]
[null,null,null,null,null," "]
["Entrada",{"$f":"menu!C3","v":0},null,{"$f":"menu!C10","v":"Huevito a la Rusa"},null,{"$f":"menu!C17","v":"Papita a la Huancaina"},null,{"$f":"menu!C24","v":"Wantan con Tamarindo"},null,{"$f":"menu!C31","v":"Ensalada de Espinaca"}]
["A",{"$f":"menu!C4","v":0},null,{"$f":"menu!C11","v":"Ají de Gallina"},null,{"$f":"menu!C18","v":"Arroz con Pollo"},null,{"$f":"menu!C25","v":"Arroz Chaufa fusión de Carne"},null,{"$f":"menu!C32","v":"Carapulcra guisada con Cerdo y arroz"}]
["Z",{"$f":"menu!C5","v":0},null,{"$f":"menu!C12","v":"Pollito al Sillao con arroz Primavera"},null,{"$f":"menu!C19","v":"Garbanzos guisados con res y arroz primavera"},null,{"$f":"menu!C26","v":"Albondigas al tuco con arroz a la Jarinera"},null,{"$f":"menu!C33","v":"Pollo a la reina con arroz primavera"}]
["D",{"$f":"menu!C6","v":0},null,{"$f":"menu!C13","v":"Ensalada César  Happy lunches con pollito al grill y crouttones"},null,{"$f":"menu!C20","v":"Ensalada Rusa con pavito al grill"},null,{"$f":"menu!C27","v":"Ensalada Parrillera con pollito al grill"},null,{"$f":"menu!C34","v":"Ensalada Cheff con pollito al grill"}]
["E",{"$f":"menu!C7","v":0},null,{"$f":"menu!C14","v":"Pizzadillas de Jamón y queso con Huevito a la Rusa"},null,{"$f":"menu!C21","v":"Macarrones con Queso y jamón"},null,{"$f":"menu!C28","v":"Pollito al horno con puré de papita amarilla"},null,{"$f":"menu!C35","v":"Nuggets de Pollo al horno con tequeños con guacamole"}]
["Postre",{"$f":"menu!C8","v":0},null,{"$f":"menu!C15","v":"Fruta de Estación"},null,{"$f":"menu!C22","v":"Gelatina con Fruta"},null,{"$f":"menu!C29","v":"Mini Brownie"},null,{"$f":"menu!C36","v":"Galletas Naturales de Ajonjolí con miel"}]
["Refresco",{"$f":"menu!C9","v":0},null,{"$f":"menu!C16","v":"Chicha Morada"},null,{"$f":"menu!C23","v":"Maracuyá "},null,{"$f":"menu!C30","v":"Naranjada"},null,{"$f":"menu!C37","v":"Limonada"}]
[]
["Opción",{"$f":"menu!A38","v":"7 de Septiembre"},null,{"$f":"menu!A45","v":"8 de Septiembre"},null,{"$f":"menu!A52","v":"9 de Septiembre"},null,{"$f":"menu!A59","v":"10 de Septiembre"},null,{"$f":"menu!A66","v":"11 de Septiembre"}]
[null," ",null," ",null," ",null," ",null," "]
["Entrada",{"$f":"menu!C38","v":"Pan al Ajo"},null,{"$f":"menu!C45","v":"Soufflé de Verduras"},null,{"$f":"menu!C52","v":"Ensalada de Pepino"},null,{"$f":"menu!C59","v":"Huevito a la Huancaina"},null,{"$f":"menu!C66","v":"Mini tortilla Española"}]
["A",{"$f":"menu!C39","v":"Pollito anticuchado con papitas y verduras"},null,{"$f":"menu!C46","v":"Pollito Saltado con arroz "},null,{"$f":"menu!C53","v":"Frijoles Canario con guisito de pollo"},null,{"$f":"menu!C60","v":"Spaghetti a la Bolognesa "},null,{"$f":"menu!C67","v":"Paella con verduras y pollo"}]
["Z",{"$f":"menu!C40","v":"Spaghetti a lo alfredo con pollito en cubos"},null,{"$f":"menu!C47","v":"Pollo a la Carbonara con Arroz"},null,{"$f":"menu!C54","v":"Cordon Bleu de pollo con arroz primavera"},null,{"$f":"menu!C61","v":"Milanesa de pescado con arroz primavera"},null,{"$f":"menu!C68","v":"Papita rellena de pollo con arroz primavera"}]
["D",{"$f":"menu!C41","v":"Ensalada de Pollo mechado "},null,{"$f":"menu!C48","v":"Causa rellena de pollito "},null,{"$f":"menu!C55","v":"Ensalada de Pavo  Happy lunches"},null,{"$f":"menu!C62","v":"Taco Salad con pollito "},null,{"$f":"menu!C69","v":"Ensalada de Atún "}]
["E",{"$f":"menu!C42","v":"Deditos de pescado con yuquitas al horno"},null,{"$f":"menu!C49","v":"Bisteck con papitas y verduras"},null,{"$f":"menu!C56","v":"Huevitos en su nido con papitas"},null,{"$f":"menu!C63","v":"Lasagna de poro y champignones con pollito con pan al ajo"},null,{"$f":"menu!C70","v":"Nuggets de Pollo al horno con puré de papita amarilla"}]
["Postre",{"$f":"menu!C43","v":"Mini Pionono"},null,{"$f":"menu!C50","v":"Fruta de Estación"},null,{"$f":"menu!C57","v":"Gelatina con Fruta"},null,{"$f":"menu!C64","v":"Galletas Naturales con Kiwicha"},null,{"$f":"menu!C71","v":"Mini Trufas "}]
["Refresco",{"$f":"menu!C44","v":"Limonada"},null,{"$f":"menu!C51","v":"Chicha Morada"},null,{"$f":"menu!C58","v":"Naranjada"},null,{"$f":"menu!C65","v":"Maracuyá"},null,{"$f":"menu!C72","v":"Limonada"}]
[]
["Opción",{"$f":"menu!A73","v":"14 de Septiembre"},null,{"$f":"menu!A80","v":"15 de Septiembre"},null,{"$f":"menu!A87","v":"16 de Septiembre"},null,{"$f":"menu!A94","v":"17 de Septiembre"},null,{"$f":"menu!A101","v":"18 de Septiembre"}]
[null," ",null," ",null," ",null," ",null," "]
["Entrada",{"$f":"menu!C73","v":"Mini Ensalada César"},null,{"$f":"menu!C80","v":"Ensalada Fresca"},null,{"$f":"menu!C87","v":"Papitas emperejiladas"},null,{"$f":"menu!C94","v":"Huevito Relleno"},null,{"$f":"menu!C101","v":"Choclito a la Huancaina"}]
["A",{"$f":"menu!C74","v":"Vainitas Salteadas con carne/ arroz blanco"},null,{"$f":"menu!C81","v":"Pollito anticuchado con papitas y choclo"},null,{"$f":"menu!C88","v":"Milanesa de Pescado con arroz con verduras"},null,{"$f":"menu!C95","v":"Estofado de pollo con arroz blanco"},null,{"$f":"menu!C102","v":"Arroz con Pollo "}]
["Z",{"$f":"menu!C75","v":"Pepián de choclo guisado con cerdo/arroz"},null,{"$f":"menu!C82","v":"Spaghetti al pesto con guisito de carne"},null,{"$f":"menu!C89","v":"Seco de Res con arroz blanco"},null,{"$f":"menu!C96","v":"Arvejitas verdes con  guisito de pollo"},null,{"$f":"menu!C103","v":"Pollito al grill con arroz y brócoli"}]
["D",{"$f":"menu!C76","v":"Ensalada César Happy Lunches con pollito al grill"},null,{"$f":"menu!C83","v":"Ensalada Criolla con pollito al grill"},null,{"$f":"menu!C90","v":"Ensalada de Palta con pollito anticuchado"},null,{"$f":"menu!C97","v":"Ensalada de Quinua con pollo en dados"},null,{"$f":"menu!C104","v":"Ensalada de Garbanzos con atún"}]
["E",{"$f":"menu!C77","v":"Cheeseburguer con papitas "},null,{"$f":"menu!C84","v":"Chicken fingers con choclo con queso"},null,{"$f":"menu!C91","v":"Pizza de Jamón y queso / verduras"},null,{"$f":"menu!C98","v":"Pollo al sillao con arroz con verduras"},null,{"$f":"menu!C105","v":"Chicken fingers con papitas duquesas "}]
["Postre",{"$f":"menu!C78","v":"Mini blondie"},null,{"$f":"menu!C85","v":"Fruta de Estación"},null,{"$f":"menu!C92","v":"Bombitas Happy Lunches "},null,{"$f":"menu!C99","v":"Gelatina con Fruta"},null,{"$f":"menu!C106","v":"Galletas Naturales de Kiwicha"}]
["Refresco",{"$f":"menu!C79","v":"Naranjada"},null,{"$f":"menu!C86","v":"Chicha Morada"},null,{"$f":"menu!C93","v":"Limonada"},null,{"$f":"menu!C100","v":"Maracuyá "},null,{"$f":"menu!C107","v":"Limonada"}]
[]
["Opción",{"$f":"menu!A108","v":"21 de Septiembre"},null,{"$f":"menu!A115","v":"22 de Septiembre"},null,{"$f":"menu!A122","v":"23 de Septiembre"},null,{"$f":"menu!A129","v":"24 de Septiembre"},null,{"$f":"menu!A136","v":"25 de Septiembre"}]
[null," ",null," ",null," ",null," ",null," "]
["Entrada",{"$f":"menu!C108","v":"Ensalada fresca "},null,{"$f":"menu!C115","v":"Soufflé de verduras"},null,{"$f":"menu!C122","v":"Mini pizadillas"},null,{"$f":"menu!C129","v":"Pan al ajo"},null,{"$f":"menu!C136","v":"Ensalada de Espinaca"}]
["A",{"$f":"menu!C109","v":"Hamburguesa al plato con papitas"},null,{"$f":"menu!C116","v":"Cau-cau de pollo "},null,{"$f":"menu!C123","v":"Seco de res con arroz"},null,{"$f":"menu!C130","v":"Lasagna a la Bolognesa"},null,{"$f":"menu!C137","v":"Ají de Gallina con arroz"}]
["Z",{"$f":"menu!C110","v":"Spaghetti a la carbonara con pollito al grill"},null,{"$f":"menu!C117","v":"Arroz chaufa de pollo "},null,{"$f":"menu!C124","v":"Canutos capresse con pollito"},null,{"$f":"menu!C131","v":"Pollo a la Coca-Cola con arroz"},null,{"$f":"menu!C138","v":"Pallares guisados con pollito y arroz"}]
["D",{"$f":"menu!C111","v":"Ensalada Oriental con pollito al grill"},null,{"$f":"menu!C118","v":"Ensalada Rusa con Pavito al horno"},null,{"$f":"menu!C125","v":"Palta Rellena con atún"},null,{"$f":"menu!C132","v":"Ensalada Delicia con pollito al grill"},null,{"$f":"menu!C139","v":"Super Papa a la Huancaina con huevo duro"}]
["E",{"$f":"menu!C112","v":"Nuggets al horno con papitas"},null,{"$f":"menu!C119","v":"Tortillas de Coliflor con pollito y arroz blanco"},null,{"$f":"menu!C126","v":"Nuggets al horno con lentejas guisadas"},null,{"$f":"menu!C133","v":"Pollito anticuchado con arroz a la jardinera"},null,{"$f":"menu!C140","v":"Pollito BBQ con arroz y verduras"}]
["Postre",{"$f":"menu!C113","v":"Fruta de Estación"},null,{"$f":"menu!C120","v":"Mini Brownie"},null,{"$f":"menu!C127","v":"Bombitas Happy Lunches "},null,{"$f":"menu!C134","v":"Gelatina con Fruta"},null,{"$f":"menu!C141","v":"Mini Trufas"}]
["Refresco",{"$f":"menu!C114","v":"Limonada"},null,{"$f":"menu!C121","v":"Chicha Morada"},null,{"$f":"menu!C128","v":"Naranjada"},null,{"$f":"menu!C135","v":"Limonada"},null,{"$f":"menu!C142","v":"Maracuyá"}]
[]
["Opción",{"$f":"menu!A143","v":"28 de Septiembre"},null,{"$f":"menu!A150","v":"29 de Septiembre"},null,{"$f":"menu!A157","v":"30 de Septiembre"},null,{"$f":"menu!A164","v":0},null,{"$f":"menu!A171","v":0}]
[null," ",null," ",null," ",null," "]
["Entrada",{"$f":"menu!C143","v":"Crema de Zapallo "},null,{"$f":"menu!C150","v":"Ensalada de Palta"},null,{"$f":"menu!C157","v":"Mini Quesadilla"},null,{"$f":"menu!C164","v":0},null,{"$f":"menu!C171","v":0}]
["A",{"$f":"menu!C144","v":"Tortillas de Atún con arroz con verduras"},null,{"$f":"menu!C151","v":"Pollo al vino con arroz blanco"},null,{"$f":"menu!C158","v":"Arroz a la jardinera con guiso de carne"},null,{"$f":"menu!C165","v":0},null,{"$f":"menu!C172","v":0}]
["Z",{"$f":"menu!C145","v":"Pollo a la mostaza con arroz"},null,{"$f":"menu!C152","v":"Bisteck con huevito al grill y arroz"},null,{"$f":"menu!C159","v":"Pollo a la Olla con arroz"},null,{"$f":"menu!C166","v":0},null,{"$f":"menu!C173","v":0}]
["D",{"$f":"menu!C146","v":"Wrap de pollo y palta "},null,{"$f":"menu!C153","v":"Causa Limeña con pollito "},null,{"$f":"menu!C160","v":"Pan Ciabatta integral con asado"},null,{"$f":"menu!C167","v":0},null,{"$f":"menu!C174","v":0}]
["E",{"$f":"menu!C147","v":"Alitas al Horno con ensalada Rusa"},null,{"$f":"menu!C154","v":"Pechuguitas al horno con puré "},null,{"$f":"menu!C161","v":"Nuggets al horno con papitas"},null,{"$f":"menu!C168","v":0},null,{"$f":"menu!C175","v":0}]
["Postre",{"$f":"menu!C148","v":"Alfajor"},null,{"$f":"menu!C155","v":"Galletas Naturales "},null,{"$f":"menu!C162","v":"Mini Piononito"},null,{"$f":"menu!C169","v":0},null,{"$f":"menu!C176","v":0}]
["Refresco",{"$f":"menu!C149","v":"Limonada"},null,{"$f":"menu!C156","v":"Chicha Morada"},null,{"$f":"menu!C163","v":"Maracuyá"},null,{"$f":"menu!C170","v":0},null,{"$f":"menu!C177","v":0}]
[]
[null,null,null,null,null,null,null,"Limpiar  Pedidos"]
[null,"SI DESEA  EDITAR O REALIZAR UN PEDIDO MÁS HACER CLICK EN ALUMNO 3"]
[null,"SI FINALIZO SU PEDIDO DAR CLICK INICIO"]

{"sheet":"menu","index":4,"n_rows":177,"n_cols":3,"rows_kept":177,"cut":false,"hidden":false,"merged":[[163,0,169,0],[163,2,163,7],[164,2,164,7],[165,2,165,7],[166,2,166,7],[167,2,167,7],[168,2,168,7],[169,2,169,7],[170,0,176,0],[170,2,170,7],[171,2,171,7],[172,2,172,7],[173,2,173,7],[174,2,174,7],[175,2,175,7],[176,2,176,7],[142,0,148,0],[149,0,155,0],[154,2,154,7],[155,2,155,7],[156,0,162,0],[156,2,156,7],[157,2,157,7],[158,2,158,7],[159,2,159,7],[160,2,160,7],[161,2,161,7],[162,2,162,7],[151,2,151,7],[152,2,152,7],[153,2,153,7],[145,2,145,7],[146,2,146,7],[147,2,147,7],[148,2,148,7],[149,2,149,7],[150,2,150,7],[79,0,85,0],[86,0,92,0],[93,0,99,0],[100,0,106,0],[107,0,113,0],[114,0,120,0],[121,0,127,0],[128,0,134,0],[135,0,141,0],[16,0,22,0],[23,0,29,0],[30,0,36,0],[37,0,43,0],[44,0,50,0],[51,0,57,0],[58,0,64,0],[65,0,71,0],[72,0,78,0],[139,2,139,7],[140,2,140,7],[141,2,141,7],[142,2,142,7],[143,2,143,7],[144,2,144,7],[121,2,121,7],[122,2,122,7],[123,2,123,7],[124,2,124,7],[125,2,125,7],[126,2,126,7],[133,2,133,7],[134,2,134,7],[135,2,135,7],[136,2,136,7],[137,2,137,7],[138,2,138,7],[127,2,127,7],[128,2,128,7],[129,2,129,7],[130,2,130,7],[131,2,131,7],[132,2,132,7],[115,2,115,7],[116,2,116,7],[117,2,117,7],[118,2,118,7],[119,2,119,7],[120,2,120,7],[109,2,109,7],[110,2,110,7],[111,2,111,7],[112,2,112,7],[113,2,113,7],[114,2,114,7],[103,2,103,7],[104,2,104,7],[105,2,105,7],[106,2,106,7],[107,2,107,7],[108,2,108,7],[97,2,97,7],[98,2,98,7],[99,2,99,7],[100,2,100,7],[101,2,101,7],[102,2,102,7],[91,2,91,7],[92,2,92,7],[93,2,93,7],[94,2,94,7],[95,2,95,7],[96,2,96,7],[85,2,85,7],[86,2,86,7],[87,2,87,7],[88,2,88,7],[89,2,89,7],[90,2,90,7],[79,2,79,7],[80,2,80,7],[81,2,81,7],[82,2,82,7],[83,2,83,7],[84,2,84,7],[73,2,73,7],[74,2,74,7],[75,2,75,7],[76,2,76,7],[77,2,77,7],[78,2,78,7],[67,2,67,7],[68,2,68,7],[69,2,69,7],[70,2,70,7],[71,2,71,7],[72,2,72,7],[61,2,61,7],[62,2,62,7],[63,2,63,7],[64,2,64,7],[65,2,65,7],[66,2,66,7],[28,2,28,7],[29,2,29,7],[30,2,30,7],[55,2,55,7],[56,2,56,7],[57,2,57,7],[58,2,58,7],[59,2,59,7],[60,2,60,7],[49,2,49,7],[50,2,50,7],[51,2,51,7],[52,2,52,7],[53,2,53,7],[54,2,54,7],[16,2,16,7],[17,2,17,7],[18,2,18,7],[43,2,43,7],[44,2,44,7],[45,2,45,7],[46,2,46,7],[47,2,47,7],[48,2,48,7],[37,2,37,7],[38,2,38,7],[39,2,39,7],[40,2,40,7],[41,2,41,7],[42,2,42,7],[31,2,31,7],[32,2,32,7],[33,2,33,7],[34,2,34,7],[35,2,35,7],[36,2,36,7],[25,2,25,7],[26,2,26,7],[27,2,27,7],[22,2,22,7],[23,2,23,7],[24,2,24,7],[0,0,0,7],[2,2,2,7],[3,2,3,7],[4,2,4,7],[5,2,5,7],[6,2,6,7],[7,2,7,7],[8,2,8,7],[9,2,9,7],[1,2,1,7],[2,0,8,0],[9,0,15,0],[10,2,10,7],[11,2,11,7],[12,2,12,7],[19,2,19,7],[20,2,20,7],[21,2,21,7],[13,2,13,7],[14,2,14,7],[15,2,15,7]]}
["Desde esta hoja de cálculo se ingresan los pedidos mensuales para que se actulicen los calendarios NO SE MUESTRA A LOS CLIENTES\n*SOLO SE CAMBIA DÍA Y MENU"]
["DIAS","OPCIONES"]
[null,"Entrada"]
[null,"A"]
[null,"Z"]
[null,"D"]
[null,"E"]
[null,"postre"]
[null,"refresco"]
["1 de Septiembre","Entrada","Huevito a la Rusa"]
[null,"A","Ají de Gallina"]
[null,"Z","Pollito al Sillao con arroz Primavera"]
[null,"D","Ensalada César  Happy lunches con pollito al grill y crouttones"]
[null,"E","Pizzadillas de Jamón y queso con Huevito a la Rusa"]
[null,"postre","Fruta de Estación"]
[null,"refresco","Chicha Morada"]
["2 de Septiembre","Entrada","Papita a la Huancaina"]
[null,"A","Arroz con Pollo"]
[null,"Z","Garbanzos guisados con res y arroz primavera"]
[null,"D","Ensalada Rusa con pavito al grill"]
[null,"E","Macarrones con Queso y jamón"]
[null,"postre","Gelatina con Fruta"]
[null,"refresco","Maracuyá "]
["3 de Septiembre","Entrada","Wantan con Tamarindo"]
[null,"A","Arroz Chaufa fusión de Carne"]
[null,"Z","Albondigas al tuco con arroz a la Jarinera"]
[null,"D","Ensalada Parrillera con pollito al grill"]
[null,"E","Pollito al horno con puré de papita amarilla"]
[null,"postre","Mini Brownie"]
[null,"refresco","Naranjada"]
["4 de Septiembre","Entrada","Ensalada de Espinaca"]
[null,"A","Carapulcra guisada con Cerdo y arroz"]
[null,"Z","Pollo a la reina con arroz primavera"]
[null,"D","Ensalada Cheff con pollito al grill"]
[null,"E","Nuggets de Pollo al horno con tequeños con guacamole"]
[null,"postre","Galletas Naturales de Ajonjolí con miel"]
[null,"refresco","Limonada"]
["7 de Septiembre","Entrada","Pan al Ajo"]
[null,"A","Pollito anticuchado con papitas y verduras"]
[null,"Z","Spaghetti a lo alfredo con pollito en cubos"]
[null,"D","Ensalada de Pollo mechado "]
[null,"E","Deditos de pescado con yuquitas al horno"]
[null,"postre","Mini Pionono"]
[null,"refresco","Limonada"]
["8 de Septiembre","Entrada","Soufflé de Verduras"]
[null,"A","Pollito Saltado con arroz "]
[null,"Z","Pollo a la Carbonara con Arroz"]
[null,"D","Causa rellena de pollito "]
[null,"E","Bisteck con papitas y verduras"]
[null,"postre","Fruta de Estación"]
[null,"refresco","Chicha Morada"]
["9 de Septiembre","Entrada","Ensalada de Pepino"]
[null,"A","Frijoles Canario con guisito de pollo"]
[null,"Z","Cordon Bleu de pollo con arroz primavera"]
[null,"D","Ensalada de Pavo  Happy lunches"]
[null,"E","Huevitos en su nido con papitas"]
[null,"postre","Gelatina con Fruta"]
[null,"refresco","Naranjada"]
["10 de Septiembre","Entrada","Huevito a la Huancaina"]
[null,"A","Spaghetti a la Bolognesa "]
[null,"Z","Milanesa de pescado con arroz primavera"]
[null,"D","Taco Salad con pollito "]
[null,"E","Lasagna de poro y champignones con pollito con pan al ajo"]
[null,"postre","Galletas Naturales con Kiwicha"]
[null,"refresco","Maracuyá"]
["11 de Septiembre","Entrada","Mini tortilla Española"]
[null,"A","Paella con verduras y pollo"]
[null,"Z","Papita rellena de pollo con arroz primavera"]
[null,"D","Ensalada de Atún "]
[null,"E","Nuggets de Pollo al horno con puré de papita amarilla"]
[null,"postre","Mini Trufas "]
[null,"refresco","Limonada"]
["14 de Septiembre","Entrada","Mini Ensalada César"]
[null,"A","Vainitas Salteadas con carne/ arroz blanco"]
[null,"Z","Pepián de choclo guisado con cerdo/arroz"]
[null,"D","Ensalada César Happy Lunches con pollito al grill"]
[null,"E","Cheeseburguer con papitas "]
[null,"postre","Mini blondie"]
[null,"refresco","Naranjada"]
["15 de Septiembre","Entrada","Ensalada Fresca"]
[null,"A","Pollito anticuchado con papitas y choclo"]
[null,"Z","Spaghetti al pesto con guisito de carne"]
[null,"D","Ensalada Criolla con pollito al grill"]
[null,"E","Chicken fingers con choclo con queso"]
[null,"postre","Fruta de Estación"]
[null,"refresco","Chicha Morada"]
["16 de Septiembre","Entrada","Papitas emperejiladas"]
[null,"A","Milanesa de Pescado con arroz con verduras"]
[null,"Z","Seco de Res con arroz blanco"]
[null,"D","Ensalada de Palta con pollito anticuchado"]
[null,"E","Pizza de Jamón y queso / verduras"]
[null,"postre","Bombitas Happy Lunches "]
[null,"refresco","Limonada"]
["17 de Septiembre","Entrada","Huevito Relleno"]
[null,"A","Estofado de pollo con arroz blanco"]
[null,"Z","Arvejitas verdes con  guisito de pollo"]
[null,"D","Ensalada de Quinua con pollo en dados"]
[null,"E","Pollo al sillao con arroz con verduras"]
[null,"postre","Gelatina con Fruta"]
[null,"refresco","Maracuyá "]
["18 de Septiembre","Entrada","Choclito a la Huancaina"]
[null,"A","Arroz con Pollo "]
[null,"Z","Pollito al grill con arroz y brócoli"]
[null,"D","Ensalada de Garbanzos con atún"]
[null,"E","Chicken fingers con papitas duquesas "]
[null,"postre","Galletas Naturales de Kiwicha"]
[null,"refresco","Limonada"]
["21 de Septiembre","Entrada","Ensalada fresca "]
[null,"A","Hamburguesa al plato con papitas"]
[null,"Z","Spaghetti a la carbonara con pollito al grill"]
[null,"D","Ensalada Oriental con pollito al grill"]
[null,"E","Nuggets al horno con papitas"]
[null,"postre","Fruta de Estación"]
[null,"refresco","Limonada"]
["22 de Septiembre","Entrada","Soufflé de verduras"]
[null,"A","Cau-cau de pollo "]
[null,"Z","Arroz chaufa de pollo "]
[null,"D","Ensalada Rusa con Pavito al horno"]
[null,"E","Tortillas de Coliflor con pollito y arroz blanco"]
[null,"postre","Mini Brownie"]
[null,"refresco","Chicha Morada"]
["23 de Septiembre","Entrada","Mini pizadillas"]
[null,"A","Seco de res con arroz"]
[null,"Z","Canutos capresse con pollito"]
[null,"D","Palta Rellena con atún"]
[null,"E","Nuggets al horno con lentejas guisadas"]
[null,"postre","Bombitas Happy Lunches "]
[null,"refresco","Naranjada"]
["24 de Septiembre","Entrada","Pan al ajo"]
[null,"A","Lasagna a la Bolognesa"]
[null,"Z","Pollo a la Coca-Cola con arroz"]
[null,"D","Ensalada Delicia con pollito al grill"]
[null,"E","Pollito anticuchado con arroz a la jardinera"]
[null,"postre","Gelatina con Fruta"]
[null,"refresco","Limonada"]
["25 de Septiembre","Entrada","Ensalada de Espinaca"]
[null,"A","Ají de Gallina con arroz"]
[null,"Z","Pallares guisados con pollito y arroz"]
[null,"D","Super Papa a la Huancaina con huevo duro"]
[null,"E","Pollito BBQ con arroz y verduras"]
[null,"postre","Mini Trufas"]
[null,"refresco","Maracuyá"]
["28 de Septiembre","Entrada","Crema de Zapallo "]
[null,"A","Tortillas de Atún con arroz con verduras"]
[null,"Z","Pollo a la mostaza con arroz"]
[null,"D","Wrap de pollo y palta "]
[null,"E","Alitas al Horno con ensalada Rusa"]
[null,"postre","Alfajor"]
[null,"refresco","Limonada"]
["29 de Septiembre","Entrada","Ensalada de Palta"]
[null,"A","Pollo al vino con arroz blanco"]
[null,"Z","Bisteck con huevito al grill y arroz"]
[null,"D","Causa Limeña con pollito "]
[null,"E","Pechuguitas al horno con puré "]
[null,"postre","Galletas Naturales "]
[null,"refresco","Chicha Morada"]
["30 de Septiembre","Entrada","Mini Quesadilla"]
[null,"A","Arroz a la jardinera con guiso de carne"]
[null,"Z","Pollo a la Olla con arroz"]
[null,"D","Pan Ciabatta integral con asado"]
[null,"E","Nuggets al horno con papitas"]
[null,"postre","Mini Piononito"]
[null,"refresco","Maracuyá"]
[null,"Entrada"]
[null,"A"]
[null,"Z"]
[null,"D"]
[null,"E"]
[null,"postre"]
[null,"refresco"]
[null,"Entrada"]
[null,"A"]
[null,"Z"]
[null,"D"]
[null,"E"]
[null,"postre"]
[null,"refresco"]